bitfinex-derivatives/quotes_ETHF0:USTF0_20250420
["timestamp","ask_amount","ask_price","bid_price","bid_amount"]
[1745107598189,3.2078,1609.8,1609.7,10.15622866]
[1745107598396,7.5308,1610.1,1610.0,1.24245]
[1745107598589,4.323,1610.1,1610.0,10.15598866]
[1745107599199,102.3098,1610.3,1610.1,1.24231]
[1745107599392,102.3098,1610.3,1610.2,10.95183866]
[1745107599689,7.5308,1610.3,1610.2,10.95183866]
[1745107599886,7.5308,1610.3,1610.2,9.70953866]
[1745107600085,3.2078,1610.3,1610.2,12.77103866]
[1745107600295,3.2078,1610.3,1610.2,14.01333866]
[1745107600498,4.323,1610.5,1610.2,17.77103866]
[1745107600795,4.323,1610.5,1610.4,8.91353866]
[1745107601187,11.43064654,1610.6,1610.4,14.10968866]
[1745107601497,12.67263654,1610.6,1610.5,8.91353866]
[1745107601694,11.43064654,1610.6,1610.5,10.63953866]
[1745107601892,11.43064654,1610.6,1610.5,11.88160866]
[1745107602093,3.2078,1610.6,1610.5,14.10960866]
[1745107603391,1.24178,1610.9,1610.7,1.24191]
[1745107603597,8.77045,1611.1,1611.0,8.91353866]
[1745107603797,7.5288,1611.1,1611.0,8.91353866]
[1745107603985,5.56261,1611.1,1611.0,8.91353866]
[1745107604187,5.56261,1611.1,1611.0,2.228]
[1745107604391,5.56261,1611.1,1610.8,1.726]
[1745107604392,1.24176,1610.9,1610.8,1.726]
[1745107605593,1.24176,1610.9,1610.8,10.63953866]
[1745107606607,1.24174,1611.0,1610.8,10.63953866]
[1745107606900,1.24174,1611.0,1610.9,1.6967]
[1745107607098,8.77046,1611.1,1610.9,12.83823866]
[1745107607289,8.77046,1611.1,1610.9,3.9247]
[1745107607485,8.77046,1611.1,1611.0,8.91353866]
[1745107607699,7.5288,1611.1,1611.0,10.63973866]
[1745107607997,3.2078,1611.1,1611.0,10.63973866]
[1745107608300,2.228,1611.1,1611.0,16.88141866]
[1745107608704,2.228,1611.1,1611.0,20.08921866]
[1745107608894,2.228,1611.1,1611.0,20.93811866]
[1745107609089,2.228,1611.1,1611.0,15.93811866]
[1745107609297,2.228,1611.1,1611.0,14.69643866]
[1745107609500,2.228,1611.1,1611.0,11.48863866]
[1745107609700,2.228,1611.1,1611.0,12.73031866]
[1745107611305,2.228,1611.1,1611.0,11.48863866]
[1745107611495,2.228,1611.1,1611.0,12.73031866]
[1745107611799,2.228,1611.1,1611.0,11.48863866]
[1745107612398,3.46961,1611.1,1611.0,11.48863866]
[1745107612599,2.228,1611.1,1611.0,11.48863866]
[1745107614010,2.228,1611.1,1611.0,12.73031866]
[1745107614212,2.228,1611.1,1611.0,11.48863866]
[1745107615794,3.46961,1611.1,1611.0,11.48863866]
[1745107615993,2.228,1611.1,1611.0,11.48863866]
[1745107616211,3.46961,1611.1,1611.0,11.48863866]
[1745107617209,3.46961,1611.1,1611.0,10.63973866]
[1745107617410,5.13161,1611.1,1611.0,10.63973866]
[1745107618000,5.13161,1611.1,1611.0,1.7262]
[1745107618503,3.46961,1611.1,1611.0,1.7262]
[1745107619207,2.228,1611.1,1611.0,1.7262]
[1745107619607,6.67741,1611.1,1611.0,1.7262]
[1745107619798,8.32401,1611.1,1611.0,1.7262]
[1745107620012,5.11621,1611.1,1611.0,1.7262]
[1745107620204,1.6466,1611.1,1611.0,3.9542]
[1745107620511,2.88821,1611.1,1611.0,3.9542]
[1745107621407,1.6466,1611.1,1611.0,5.19588]
[1745107621711,5.57754,1611.2,1611.0,14.10941866]
[1745107622012,5.57754,1611.2,1611.1,1.7169]
[1745107622213,6.0747,1611.2,1611.1,1.7169]
[1745107622510,7.31623,1611.2,1611.1,1.7169]
[1745107623007,5.57753,1611.2,1611.1,1.7169]
[1745107623307,7.80553,1611.2,1611.1,1.7169]
[1745107624005,7.80553,1611.2,1611.1,10.63043866]
[1745107624509,7.80553,1611.2,1611.1,6.63234933]
[1745107624707,9.54423,1611.2,1611.1,6.63234933]
[1745107624912,8.3027,1611.2,1611.1,6.63234933]
[1745107625410,6.564,1611.2,1611.1,7.87395933]
[1745107626307,6.564,1611.2,1611.1,6.63234933]
[1745107626516,1.24165,1611.1,1610.9,6.21863388]
[1745107626703,2.83805,1611.1,1611.0,6.63234933]
[1745107627204,5.06605,1611.1,1611.0,6.63234933]
[1745107627909,1.24176,1610.9,1610.8,3.2078]
[1745107628511,2.83815,1611.0,1610.8,11.58254933]
[1745107628711,2.83815,1611.0,1610.9,6.63234933]
[1745107628910,1.24175,1611.0,1610.9,6.63234933]
[1745107629214,1.24168,1611.0,1610.9,2.228]
[1745107630310,2.10738,1611.0,1610.9,2.228]
[1745107633116,1.24185,1610.8,1610.6,8.57650913]
[1745107633307,5.57782,1610.9,1610.8,6.63234933]
[1745107633913,1.24191,1610.7,1610.6,4.97688388]
[1745107634117,4.44971,1610.7,1610.6,4.97688388]
[1745107634318,3.2078,1610.7,1610.6,11.60923321]
[1745107636216,3.2078,1610.7,1610.6,13.34283321]
[1745107636820,4.44971,1610.7,1610.6,13.34283321]
[1745107637321,3.2078,1610.7,1610.6,13.34283321]
[1745107637822,0.8718,1610.8,1610.7,1.24191]
[1745107638023,0.8718,1610.8,1610.7,9.51235933]
[1745107638220,0.8718,1610.8,1610.7,11.74035933]
[1745107638517,0.8718,1610.8,1610.7,10.49844933]
[1745107638726,0.8718,1610.8,1610.7,11.74035933]
[1745107639022,0.8718,1610.8,1610.7,10.49844933]
[1745107640627,2.11364,1610.8,1610.7,10.49844933]
[1745107640927,0.8718,1610.8,1610.7,10.49844933]
[1745107641124,2.11364,1610.8,1610.7,10.49844933]
[1745107641324,0.8718,1610.8,1610.7,11.74035933]
[1745107641631,4.336,1610.9,1610.7,10.49844933]
[1745107641823,5.57776,1610.9,1610.8,8.35774933]
[1745107642325,4.336,1610.9,1610.8,9.59958933]
[1745107642532,4.336,1610.9,1610.8,9.20824933]
[1745107642833,4.336,1610.9,1610.8,10.45008933]
[1745107643525,4.336,1610.9,1610.8,9.20824933]
[1745107644423,4.336,1610.9,1610.8,10.45008933]
[1745107645934,5.946,1610.9,1610.8,10.45008933]
[1745107647034,4.336,1610.9,1610.8,10.45008933]
[1745107647236,11.43064654,1611.0,1610.9,1.24176]
[1745107647427,11.43064654,1611.0,1610.9,9.58950933]
[1745107647633,8.22284654,1611.0,1610.9,9.58950933]
[1745107647834,8.22284654,1611.0,1610.9,12.79730933]
[1745107648033,8.22284654,1611.0,1610.9,17.77419321]
[1745107648436,12.31161141,1611.1,1611.0,1.24168]
[1745107648632,12.31161141,1611.1,1611.0,14.56631321]
[1745107648934,12.31161141,1611.1,1611.0,19.56631321]
[1745107650139,14.53961141,1611.1,1611.0,19.56631321]
[1745107650632,14.53961141,1611.1,1611.0,14.56631321]
[1745107652040,15.78122141,1611.1,1611.0,13.32463321]
[1745107652241,12.0406674,1611.1,1611.0,13.32463321]
[1745107652734,1.24168,1611.0,1610.9,3.2078]
[1745107652943,1.24176,1610.9,1610.8,6.62728388]
[1745107653543,1.24176,1610.9,1610.8,13.25963321]
[1745107653738,1.24176,1610.9,1610.8,14.50147321]
[1745107653935,1.24176,1610.9,1610.8,13.25963321]
[1745107654237,1.24176,1610.9,1610.8,12.45973321]
[1745107654828,9.47381776,1610.9,1610.8,12.45973321]
[1745107655033,10.26553184,1610.9,1610.8,12.45973321]
[1745107655235,11.95183184,1610.9,1610.8,11.60923321]
[1745107656443,10.71007184,1610.9,1610.8,11.60923321]
[1745107656839,10.71007184,1610.9,1610.8,12.85107321]
[1745107657430,10.71007184,1610.9,1610.8,14.44447321]
[1745107658340,9.02377184,1610.9,1610.8,14.44447321]
[1745107659140,9.02377184,1610.9,1610.8,9.69311447]
[1745107662236,9.02377184,1610.9,1610.8,20.54511447]
[1745107662437,9.02377184,1610.9,1610.8,24.82311447]
[1745107663543,9.02377184,1610.9,1610.8,19.82311447]
[1745107664440,9.15006037,1611.0,1610.9,1.24176]
[1745107664748,9.15006037,1611.0,1610.9,11.08190933]
[1745107664948,9.15006037,1611.0,1610.9,6.63234933]
[1745107665245,12.19256037,1611.0,1610.9,7.87410933]
[1745107667340,15.03840184,1611.0,1610.9,7.87410933]
[1745107667943,13.79667184,1611.0,1610.9,7.87410933]
[1745107668340,13.79667184,1611.0,1610.9,9.47350933]
[1745107670150,13.79667184,1611.0,1610.9,12.68130933]
[1745107670352,12.98217184,1611.0,1610.9,12.68130933]
[1745107670555,11.25177184,1611.0,1610.9,13.54390933]
[1745107670950,11.25177184,1611.0,1610.9,10.33610933]
[1745107671251,9.02377184,1611.0,1610.9,13.54390933]
[1745107671857,11.94178184,1611.1,1611.0,1.24168]
[1745107672057,11.94178184,1611.1,1611.0,7.87402933]
[1745107672357,14.16978184,1611.1,1611.0,7.87402933]
[1745107673853,12.92817184,1611.1,1611.0,7.87402933]
[1745107676440,12.92817184,1611.1,1610.9,2.462]
[1745107676755,12.92817184,1611.1,1611.0,1.24168]
[1745107677553,14.16978184,1611.1,1611.0,1.24168]
[1745107678360,14.16978184,1611.1,1610.9,2.462]
[1745107678556,1.6354,1611.0,1610.9,3.70376]
[1745107679155,3.8634,1611.0,1610.9,3.70376]
[1745107682456,3.01971408,1611.0,1610.9,3.70376]
[1745107682660,4.26139408,1611.0,1610.9,3.70376]
[1745107682962,4.67431408,1611.0,1610.9,3.70376]
[1745107683757,4.67431408,1611.0,1610.9,4.56176]
[1745107684465,8.23205776,1611.1,1611.0,1.24168]
[1745107684655,3.76310184,1611.1,1611.0,2.96958]
[1745107684952,3.76310184,1611.1,1611.0,7.96958]
[1745107685155,5.99110184,1611.1,1611.0,7.96958]
[1745107687663,4.56222184,1611.1,1611.0,7.96958]
[1745107687864,4.56222184,1611.1,1611.0,13.82158]
[1745107688864,2.76915184,1611.1,1611.0,13.82158]
[1745107689065,8.90159404,1611.2,1611.1,1.24161]
[1745107689363,5.98657404,1611.2,1611.1,6.13051]
[1745107689562,2.92967404,1611.2,1611.1,11.13051]
[1745107689763,2.92967404,1611.2,1611.1,11.61753293]
[1745107690068,1.36168404,1611.2,1611.1,11.61753293]
[1745107690269,4.04e-06,1611.2,1611.1,11.13051]
[1745107690567,4.12140884,1611.4,1611.3,1.24145]
[1745107690768,4.12140884,1611.4,1611.3,8.68425]
[1745107691266,6.34940884,1611.4,1611.3,9.51665]
[1745107692269,4.12140884,1611.4,1611.3,15.36865]
[1745107693062,4.12140884,1611.4,1611.3,20.36865]
[1745107693267,6.34940884,1611.4,1611.3,20.36865]
[1745107694267,2.228,1611.4,1611.3,20.36865]
[1745107695864,2.228,1611.4,1611.3,15.36865]
[1745107697465,3.9637,1611.4,1611.3,15.36865]
[1745107698656,3.9637,1611.4,1611.3,10.30125]
[1745107699279,3.9637,1611.4,1611.3,9.0598]
[1745107699280,5.20508,1611.4,1611.3,9.0598]
[1745107699463,5.20508,1611.4,1611.3,10.30125]
[1745107703262,3.9637,1611.4,1611.3,10.30125]
[1745107703663,5.20508,1611.4,1611.3,10.30125]
[1745107704174,3.9637,1611.4,1611.3,10.30125]
[1745107704661,3.9637,1611.4,1611.3,13.63945]
[1745107704861,2.228,1611.4,1611.3,13.63945]
[1745107705473,2.228,1611.4,1611.3,18.63945]
[1745107706076,2.228,1611.5,1611.4,1.24138]
[1745107706274,2.228,1611.5,1611.4,11.28638]
[1745107708276,1.742,1611.6,1611.5,1.2413]
[1745107708470,1.742,1611.6,1611.5,4.4491]
[1745107708879,3.8747,1611.7,1611.6,1.24122]
[1745107709272,1.6467,1611.7,1611.6,1.24122]
[1745107710278,3.8747,1611.7,1611.6,1.24122]
[1745107713182,3.0732,1611.7,1611.6,1.24122]
[1745107713488,3.891,1611.7,1611.6,1.24122]
[1745107714380,3.891,1611.7,1611.6,7.09322]
[1745107718692,3.891,1611.7,1611.6,11.28622]
[1745107719090,5.5057,1611.7,1611.6,11.28622]
[1745107721801,6.74684,1611.7,1611.6,11.28622]
[1745107722201,5.5057,1611.7,1611.6,11.28622]
[1745107722899,5.5057,1611.7,1611.6,14.49402]
[1745107726798,5.5057,1611.7,1611.6,11.28622]
[1745107727004,5.5057,1611.7,1611.6,14.49402]
[1745107728204,5.5057,1611.7,1611.6,11.28622]
[1745107728389,5.5057,1611.7,1611.6,14.49402]
[1745107729305,5.5057,1611.7,1611.6,11.28622]
[1745107729606,5.5057,1611.7,1611.6,14.49402]
[1745107730299,3.8427,1611.7,1611.6,16.38302]
[1745107731004,2.228,1611.7,1611.6,16.38302]
[1745107734108,1.7201,1611.8,1611.7,1.24114]
[1745107734308,1.7201,1611.8,1611.7,2.87484]
[1745107734509,12.1135221,1611.9,1611.8,1.24107]
[1745107734810,10.3035221,1611.9,1611.8,10.30087]
[1745107735104,12.5315221,1611.9,1611.8,10.30087]
[1745107735311,6.34940884,1611.9,1611.8,10.30087]
[1745107737108,4.12140884,1611.9,1611.8,10.30087]
[1745107739099,1.6202,1612.0,1611.9,1.24099]
[1745107739313,1.6202,1612.0,1611.9,8.93989]
[1745107740412,1.6202,1612.0,1611.9,12.14769]
[1745107740711,1.6202,1612.0,1611.9,17.99969]
[1745107742313,3.8482,1612.0,1611.9,17.99969]
[1745107742808,3.8482,1612.0,1611.9,16.31299]
[1745107743009,3.8482,1612.0,1611.9,14.43679]
[1745107743209,3.8482,1612.0,1611.9,14.43579]
[1745107744314,1.6202,1612.0,1611.9,14.43579]
[1745107745116,3.8482,1612.0,1611.9,14.43579]
[1745107746016,5.08911,1612.0,1611.9,14.43579]
[1745107746515,3.8482,1612.0,1611.9,14.43579]
[1745107750218,5.08911,1612.0,1611.9,14.43579]
[1745107750721,3.8482,1612.0,1611.9,14.43579]
[1745107753523,5.08911,1612.0,1611.9,14.43579]
[1745107753724,3.8482,1612.0,1611.9,14.43579]
[1745107754924,7.96960884,1612.0,1611.9,14.43579]
[1745107760628,9.21051884,1612.0,1611.9,1.24099]
[1745107760830,1.24099,1611.9,1611.8,11.192]
[1745107761024,4.76129,1611.9,1611.8,5.852]
[1745107761225,4.76129,1611.9,1611.8,7.09307]
[1745107762134,6.98929,1611.9,1611.8,7.09307]
[1745107762930,5.7483,1611.9,1611.8,7.09307]
[1745107763131,6.98929,1611.9,1611.8,7.09307]
[1745107764229,13.9627672,1611.9,1611.8,1.24107]
[1745107767739,1.24107,1611.8,1611.7,4.44888]
[1745107767935,2.91487,1611.8,1611.7,4.44888]
[1745107768133,3.9018,1611.8,1611.7,4.44888]
[1745107769537,3.9018,1611.8,1611.7,1.24108]
[1745107769736,3.9018,1611.8,1611.7,4.44888]
[1745107770341,5.14287,1611.8,1611.7,4.44888]
[1745107770939,12.1163472,1611.8,1611.7,4.44888]
[1745107773341,10.8752772,1611.8,1611.7,4.44888]
[1745107773539,10.8752772,1611.8,1611.7,8.02478]
[1745107777754,12.1163472,1611.8,1611.7,8.02478]
[1745107779957,12.1163472,1611.8,1611.7,4.81698]
[1745107780157,12.1163472,1611.8,1611.7,8.02478]
[1745107781062,10.8752772,1611.8,1611.7,8.02478]
[1745107781260,12.1163472,1611.8,1611.7,8.02478]
[1745107781760,10.8752772,1611.8,1611.7,8.02478]
[1745107784765,9.2014772,1611.8,1611.7,8.02478]
[1745107785162,6.9734772,1611.8,1611.7,8.02478]
[1745107785862,6.9734772,1611.8,1611.7,13.02478]
[1745107786965,6.9734772,1611.8,1611.7,8.02478]
[1745107787664,6.9734772,1611.8,1611.7,13.87678]
[1745107790060,4.1240935,1611.9,1611.8,1.24107]
[1745107790267,4.1240935,1611.9,1611.8,2.89837]
[1745107792564,4.1240935,1611.9,1611.8,7.89837]
[1745107792762,2.7742035,1611.9,1611.8,13.75037]
[1745107792965,3.5e-06,1611.9,1611.8,13.75037]
[1745107795361,1.6220035,1611.9,1611.8,13.75037]
[1745107795554,1.6220035,1611.9,1611.8,8.75037]
[1745107796662,1.622,1611.9,1611.8,8.75037]
[1745107808276,1.622,1611.9,1611.8,7.09307]
[1745107810678,1.622,1611.9,1611.8,10.30087]
[1745107811181,3.85,1611.9,1611.8,10.30087]
[1745107811579,3.85,1611.9,1611.8,12.05627]
[1745107812085,1.622,1611.9,1611.8,12.05627]
[1745107812887,1.622,1611.9,1611.8,10.30087]
[1745107815786,1.622,1611.9,1611.8,14.35487]
[1745107817389,1.622,1611.9,1611.8,16.10757]
[1745107819685,0.9446,1612.1,1612.0,1.24091]
[1745107819987,6.18211326,1612.2,1612.1,1.24084]
[1745107820176,6.18211326,1612.2,1612.1,9.02074]
[1745107821185,3.66966326,1612.2,1612.1,14.87274]
[1745107821392,1.52023326,1612.2,1612.1,19.87274]
[1745107821893,16.51368822,1612.3,1612.2,1.24076]
[1745107822093,13.17906822,1612.3,1612.2,14.20486]
[1745107822293,11.50105822,1612.3,1612.2,19.20486]
[1745107822593,10.04474822,1612.3,1612.2,19.20486]
[1745107823087,10.04474822,1612.3,1612.2,16.97686]
[1745107823292,7.18054822,1612.3,1612.2,16.97686]
[1745107823593,2.53801822,1612.3,1612.2,16.97686]
[1745107823884,0.00230822,1612.3,1612.2,111.56986]
[1745107824090,10.26258499,1612.4,1612.3,1.24068]
[1745107824091,6.95793321,1612.4,1612.3,1.24068]
[1745107824291,5.32069321,1612.4,1612.3,2.88068]
[1745107824486,1.87141321,1612.4,1612.3,7.88068]
[1745107825999,1.87141321,1612.4,1612.3,2.88068]
[1745107826205,1.87141321,1612.4,1612.3,11.13768]
[1745107826703,3.50631321,1612.4,1612.3,11.13768]
[1745107827099,3.50631321,1612.4,1612.3,7.09268]
[1745107827299,5.73431321,1612.4,1612.3,11.13768]
[1745107827699,6.97492321,1612.4,1612.3,9.897]
[1745107828305,11.97492321,1612.4,1612.3,5.852]
[1745107829006,1.24068,1612.3,1612.2,7.2528]
[1745107829204,2.95658,1612.3,1612.2,7.2528]
[1745107830108,5.18458,1612.3,1612.2,7.2528]
[1745107830900,5.18458,1612.3,1612.2,3.2078]
[1745107831101,10.18458,1612.3,1612.2,3.2078]
[1745107832206,1.24076,1612.2,1612.1,5.852]
[1745107832397,3.95686,1612.2,1612.1,5.852]
[1745107832600,8.95686,1612.2,1612.1,5.852]
[1745107833212,11.18486,1612.2,1612.1,5.852]
[1745107834512,1.24084,1612.1,1612.0,3.2078]
[1745107834711,3.97344,1612.1,1612.0,3.2078]
[1745107834913,3.97344,1612.1,1612.0,4.44871]
[1745107835097,6.20144,1612.1,1612.0,4.44871]
[1745107835303,6.20144,1612.1,1612.0,3.2078]
[1745107835608,1.24099,1611.9,1611.8,9.0598]
[1745107835803,1.24099,1611.9,1611.8,3.2078]
[1745107836000,1.24107,1611.8,1611.7,5.852]
[1745107836305,1.24114,1611.7,1611.6,4.44896]
[1745107836814,3.94854,1611.7,1611.6,4.44896]
[1745107837114,4.9354,1611.7,1611.6,4.44896]
[1745107837314,6.17654,1611.7,1611.6,4.44896]
[1745107838216,3.94854,1611.7,1611.6,4.44896]
[1745107839411,6.17654,1611.7,1611.6,4.44896]
[1745107840213,3.94854,1611.7,1611.6,4.44896]
[1745107840814,2.7074,1611.7,1611.6,4.44896]
[1745107841412,3.94854,1611.7,1611.6,4.44896]
[1745107842716,2.7074,1611.7,1611.6,4.44896]
[1745107843410,2.7074,1611.7,1611.6,7.12496]
[1745107843622,1.6978,1611.7,1611.6,7.12496]
[1745107844111,1.0498,1611.8,1611.7,1.24114]
[1745107844317,1.7557,1611.9,1611.8,1.24107]
[1745107844513,1.7557,1611.9,1611.8,11.14437]
[1745107845111,2.081,1612.0,1611.9,1.24099]
[1745107845319,2.88541,1612.2,1612.1,1.24084]
[1745107845517,3.91931,1612.2,1612.1,1.24084]
[1745107846120,6.14731,1612.2,1612.1,1.24084]
[1745107846304,1.24084,1612.1,1612.0,4.44865]
[1745107846508,2.88544,1612.1,1612.0,4.44865]
[1745107847607,1.6446,1612.1,1612.0,4.44865]
[1745107848115,3.8726,1612.1,1612.0,4.44865]
[1745107850119,5.11344,1612.1,1612.0,4.44865]
[1745107850821,2.228,1612.1,1612.0,4.44865]
[1745107851009,1.6122,1612.5,1612.4,1.24061]
[1745107851717,10.28409825,1612.6,1612.5,1.24053]
[1745107852018,10.28409825,1612.6,1612.5,4.44833]
[1745107852219,12.51209825,1612.6,1612.5,4.44833]
[1745107855224,10.28409825,1612.6,1612.5,4.44833]
[1745107855724,1.6918,1612.7,1612.6,1.24045]
[1745107856017,1.6918,1612.7,1612.6,6.93825]
[1745107856220,2.228,1612.7,1612.6,12.79025]
[1745107856421,2.228,1612.7,1612.6,13.81415]
[1745107857216,3.9434,1612.9,1612.8,1.2403]
[1745107857424,3.9434,1612.9,1612.8,4.4481]
[1745107857814,3.9434,1612.9,1612.8,6.2009]
[1745107861032,5.18362,1612.9,1612.8,6.2009]
[1745107861323,5.18362,1612.9,1612.8,3.2078]
[1745107862224,5.18362,1612.9,1612.8,4.4481]
[1745107864231,3.9434,1612.9,1612.8,4.4481]
[1745107865230,3.9434,1612.9,1612.8,6.2055]
[1745107865528,3.9434,1612.9,1612.8,7.2872]
[1745107868324,2.228,1612.9,1612.8,7.2872]
[1745107878629,2.228,1612.9,1612.8,13.1392]
[1745107904667,2.228,1612.9,1612.8,9.9314]
[1745107904961,2.228,1612.9,1612.8,13.1392]
[1745107905157,0.08537,1612.9,1612.8,18.1392]
[1745107905361,8.22555816,1613.3,1612.9,3.10044]
[1745107905560,10.28409825,1613.4,1613.3,1.23991]
[1745107905759,10.28409825,1613.4,1613.3,11.15691]
[1745107905962,10.28409825,1613.4,1613.3,14.92511]
[1745107906267,12.51209825,1613.4,1613.3,14.92511]
[1745107906464,13.53899825,1613.4,1613.3,14.92511]
[1745107906657,13.53899825,1613.4,1613.3,15.75340185]
[1745107907359,0.70176064,1613.4,1613.3,15.75340185]
[1745107907569,0.70176064,1613.4,1613.3,16.24087742]
[1745107907950,0.70176064,1613.4,1613.3,15.75340185]
[1745107908366,0.70176064,1613.4,1613.3,15.75233173]
[1745107909756,0.70176064,1613.4,1613.3,14.92511]
[1745107909963,0.70176064,1613.4,1613.3,15.75196487]
[1745107912758,0.70176064,1613.4,1613.3,11.98376487]
[1745107912958,1.73966064,1613.4,1613.3,11.98376487]
[1745107913867,1.73966064,1613.4,1613.3,11.98296094]
[1745107916663,1.73966064,1613.4,1613.3,6.13096094]
[1745107917261,0.70176064,1613.4,1613.3,6.13096094]
[1745107917463,1.76666064,1613.4,1613.3,6.13096094]
[1745107917962,1.76666064,1613.4,1613.3,7.10636094]
[1745107919371,1.76666064,1613.4,1613.3,6.13096094]
[1745107921366,1.76666064,1613.4,1613.3,6.13081259]
[1745107924973,1.76666064,1613.4,1613.3,6.1310319]
[1745107925874,1.76666064,1613.4,1613.3,6.13112251]
[1745107926966,1.76666064,1613.4,1613.3,6.13123272]
[1745107927176,3.00650064,1613.4,1613.3,0.82632272]
[1745107927370,1.23998,1613.3,1613.1,7.09202]
[1745107927676,3.80361,1613.2,1613.1,1.24007]
[1745107928069,8.80361,1613.2,1613.1,1.24007]
[1745107928268,11.03161,1613.2,1613.1,1.24007]
[1745107929574,6.03161,1613.2,1613.1,1.24007]
[1745107929869,4.7916,1613.2,1613.1,1.24007]
[1745107930072,4.7916,1613.2,1613.1,2.06675767]
[1745107930671,4.7916,1613.2,1613.1,2.06680764]
[1745107930872,4.7916,1613.2,1613.1,3.05490764]
[1745107931377,3.824,1613.2,1613.1,5.82700764]
[1745107932577,3.824,1613.2,1613.1,5.82732419]
[1745107934366,3.824,1613.2,1613.1,5.82778062]
[1745107935678,3.824,1613.2,1613.1,4.13958062]
[1745107937579,3.824,1613.2,1613.1,5.85978062]
[1745107938170,3.824,1613.2,1613.1,4.13995441]
[1745107939474,3.824,1613.2,1613.1,5.83165441]
[1745107940473,10.06399,1613.2,1613.1,0.82788441]
[1745107941076,3.824,1613.2,1613.1,2.06795441]
[1745107941878,5.06399,1613.2,1613.1,0.82788441]
[1745107942066,5.06399,1613.2,1613.1,2.06795441]
[1745107943170,5.06399,1613.2,1613.1,0.82788441]
[1745107943369,5.06399,1613.2,1613.1,2.06795441]
[1745107947483,5.06399,1613.2,1613.1,2.06755751]
[1745107948386,5.06399,1613.2,1613.1,2.06757342]
[1745107949177,5.06399,1613.2,1613.1,2.06761537]
[1745107949986,5.06399,1613.2,1613.1,2.06761514]
[1745107951485,5.06399,1613.2,1613.1,0.82754514]
[1745107951681,1.24007,1613.1,1613.0,3.2078]
[1745107951880,3.89027,1613.1,1613.0,3.2078]
[1745107952087,6.11827,1613.1,1613.0,3.2078]
[1745107954078,1.24022,1612.9,1612.8,10.3001]
[1745107954281,1.24022,1612.9,1612.8,3.2078]
[1745107954580,1.24022,1612.9,1612.8,4.4481]
[1745107954781,2.89882,1612.9,1612.8,3.2078]
[1745107954985,3.10076,1612.8,1612.6,3.2078]
[1745107955176,1.24037,1612.7,1612.6,3.2078]
[1745107955477,1.24053,1612.5,1612.4,8.26157535]
[1745107956088,3.46853,1612.5,1612.4,8.26157535]
[1745107956389,4.47023,1612.5,1612.4,8.26157535]
[1745107956592,1.24061,1612.4,1612.3,4.44842]
[1745107956890,3.90871,1612.4,1612.3,4.44842]
[1745107957081,6.13671,1612.4,1612.3,4.44842]
[1745107958384,2.228,1612.4,1612.3,4.44842]
[1745107958586,2.228,1612.4,1612.3,6.05982]
[1745107959189,3.8922,1612.6,1612.5,1.24053]
[1745107959489,1.24053,1612.5,1612.4,4.00564]
[1745107959689,1.6062,1612.5,1612.4,4.00564]
[1745107960093,3.8342,1612.5,1612.4,4.00564]
[1745107960287,2.228,1612.5,1612.4,4.00564]
[1745107964199,3.46853,1612.5,1612.4,4.00564]
[1745107965597,2.228,1612.5,1612.4,4.00564]
[1745107966102,3.818,1612.5,1612.4,4.00564]
[1745107966304,5.05853,1612.5,1612.4,4.00564]
[1745107966803,5.05853,1612.5,1612.4,7.21344]
[1745107968303,5.05853,1612.5,1612.4,5.9729]
[1745107969106,5.05853,1612.5,1612.4,7.21351]
[1745107970606,3.818,1612.5,1612.4,7.21351]
[1745107970803,5.05853,1612.5,1612.4,7.21351]
[1745107972209,5.05853,1612.5,1612.4,8.02735605]
[1745107972709,5.05853,1612.5,1612.4,7.21351]
[1745107972915,5.05853,1612.5,1612.4,8.02735634]
[1745107973213,5.05853,1612.5,1612.4,8.0273563]
[1745107974115,3.818,1612.5,1612.4,8.0273563]
[1745107974314,5.05853,1612.5,1612.4,8.0273563]
[1745107974616,5.05853,1612.5,1612.4,4.8195563]
[1745107975114,5.05853,1612.5,1612.4,8.0273563]
[1745107975315,5.05853,1612.5,1612.4,8.02771045]
[1745107976216,2.228,1612.5,1612.4,8.02771045]
[1745107977312,2.228,1612.5,1612.4,8.02787904]
[1745107980916,4.11882956,1613.0,1612.9,1.24022]
[1745107981116,4.11882956,1613.0,1612.9,5.2634084]
[1745107981613,4.11882956,1613.0,1612.9,6.8913084]
[1745107981811,4.11882956,1613.0,1612.9,17.7433084]
[1745107982203,3.93792956,1613.0,1612.9,17.7433084]
[1745107982409,4.45153601,1613.1,1613.0,1.24014]
[1745107982608,8.42487082,1613.3,1613.2,1.23999]
[1745107982822,14.36354664,1613.6,1613.4,1.23984]
[1745107983102,14.36354664,1613.6,1613.4,5.2630284]
[1745107983414,14.36354664,1613.6,1613.4,10.2630284]
[1745107983611,14.36354664,1613.6,1613.4,11.3962284]
[1745107983815,14.36354664,1613.6,1613.4,13.0241284]
[1745107984316,0.59564398,1613.5,1613.4,13.0241284]
[1745107984519,11.63078062,1613.6,1613.5,1.23976]
[1745107984708,10.31022062,1613.6,1613.5,7.7639484]
[1745107984909,10.31022062,1613.6,1613.5,12.7639484]
[1745107985311,16.41548188,1613.7,1613.6,1.23968]
[1745107985621,2.97236,1614.2,1613.9,1.23942]
[1745107985814,1.7331,1614.1,1614.0,4.44718]
[1745107986217,3.9611,1614.1,1614.0,4.44718]
[1745107986511,3.9611,1614.1,1614.0,3.2078]
[1745107986712,10.2004,1614.1,1614.0,3.2078]
[1745107986916,5.2004,1614.1,1614.0,3.2078]
[1745107987317,3.9611,1614.1,1614.0,3.2078]
[1745107987713,10.0545,1614.1,1614.0,3.2078]
[1745107987918,10.0545,1614.1,1613.9,4.44718]
[1745107988114,2.7869,1614.0,1613.9,4.44718]
[1745107989121,5.0149,1614.0,1613.9,4.44718]
[1745107989321,5.0149,1614.0,1613.9,3.2078]
[1745107989522,5.0149,1614.0,1613.9,4.44725]
[1745107989822,2.228,1614.0,1613.9,4.44725]